Workbook

Sheet All Products
BK1: CALCULATE BASE AMOUNT | BL1: =IF(CM129>0,CM129,"") ->  | BQ1: =IF(TRIM(BL17)<>"",ROUND(BL17,0),"") ->  | BU1: The Bayer Season PAK is back, offering you the performance of complete insect and disease control you need to manage your golf course. Bayer Season PAK customers automatically receive a minimum 8% rebate on all purchases during the program (Includes October bonus). | CM1: Oct Purchase | CO1: Points or Credit
BM2: =IF(ISNA(VLOOKUP(Y92,$CD$1:$CD$1998,1,FALSE)),0,1) -> 0 | BQ2: =IF(TRIM(BL17)<>"",IF(BQ1>=15000,"***** YOU ARE NOW QUALIFIED *****",""),"") -> 
BK3: CALCULATE BASE REBATE | BL3: =IF(TRIM(BL1)<>"",IF((BL1)<2500,0,IF(AND((BL1)>=2500,(BL1)<10000),0.02,IF(AND((BL1)>=10000,(BL1)<15000),0.03,IF(AND((BL1)>=15000,(BL1)<25000),0.04,IF(AND((BL1)>=25000,(BL1)<28500),IF(TRIM(AP79)<>"",IF((AV79)>=1,0.08,0.05),0.05),IF(AND((BL1)>=28500,(BL1)<40000),0.08,IF((BL1)>=40000,0.09,""))))))),"") ->  | BM3: =IF(ISNA(VLOOKUP(Y117,$CD$1:$CD$1998,1,FALSE)),0,1) -> 0 | BQ3: =IF(TRIM(BL17)<>"",IF(BQ1>=15000,"CLICK HERE TO LOG ON TO",""),"") ->  | CK3: FALSE | CM3: FALSE | CO3: 1
BQ4: =IF(BL17<=14999,"",HYPERLINK("http://www.bayergreenback.com","BAYERGREENBACK.COM")) -> BAYERGREENBACK.COM
BK5: CALCULATE OCTOBER BONUS | BL5: =IF((CM3)=TRUE,IF(TRIM(AV79)<>"","",IF(BL1>=28500,"",IF(TRIM(BL1)<>"",0.01,""))),"") ->  | BU5: Bayer Season PAK Note
E8: Bayer PAKS offer solutions for your specific turf needs. | BK8: CALCULATE PAK REBATE | BL8: =IF(TRIM(AW90)<>"",IF(AND((TRIM(AP79)<>""),(AV79)>=1),"",IF(BL1>=28500,"",0.01)),"") -> 
C13: =CONCATENATE("Bayer Season PAK",IF(CH85=2," - NOT AVAIL.",CONCATENATE(" - $",FIXED(AR79,2,FALSE)))) -> Bayer Season PAK - $28,500.00 | AE13: =CONCATENATE("Warm Season Herbicide PAK",IF(OR(CH85=1,CH85=4)," - NOT AVAIL.",CONCATENATE(" - $",FIXED(AR84,2,FALSE)))) -> Warm Season Herbicide PAK - $5,150.00 | BL13: =IF(SUM(BL3:BL10)>=0,SUM(BL3:BL10),"") -> 0
C15: =IF(CH85=2,"THIS PAK IS NOT AVAILABLE FOR CALIFORNIA CUSTOMERS.",BU1) -> The Bayer Season PAK is back, offering you the performance of complete insect and disease control you need to manage your golf course. Bayer Season PAK customers automatically receive a minimum 8% rebate on all purchases during the program (Includes October bonus). | AE15: =IF(CH85=1,"THIS PAK IS NOT AVAILABLE FOR WASHINGTON CUSTOMERS.",IF(CH85=4,"THIS PAK IS NOT AVAILABLE FOR NEW YORK CUSTOMERS.","Provides a great combination of pre- and postemergent herbicide options to control a broad spectrum of difficult to control weeds.")) -> Provides a great combination of pre- and postemergent herbicide options to control a broad spectrum of difficult to control weeds.
BK17: TOTAL $ | BL17: =IF(SUM(AW90,AK127)>0,SUM(AW90,AK127),"") -> 
C18: PRODUCTS | K18: UNITS/ PAK | L18: UNIT SIZE | P18: GAL/LB /OZ | R18: USE RATE | X18: ACRES TREATED | AE18: PRODUCTS | AN18: UNITS/ PAK | AQ18: UNIT SIZE | AU18: GAL/LB /OZ | AW18: USE RATE | BA18: ACRES TREATED | BK18: TOTAL PROGRAM REBATE % | BL18: =IF(TRIM(BL17)<>"",IF(CM129>=2500,IF(TRIM(BL13)<>"",BL13,""),""),"") -> 
C19: Banol® | K19: 2 | L19: 2 x 1 gal/case | P19: 4 | R19: 2 | T19: oz/1,000 | X19: =IF(TRIM(R19)<>"",(P19*128)/(R19*43.56),"") -> 5.876951331 | AE19: Specticle® FLO | AN19: 1 | AQ19: 2 X 1 gal/case | AU19: 2 | AW19: 6.5 | AY19: oz./acre | BA19: =IF(TRIM(AW19)<>"",(AU19*128)/AW19,"") -> 39.38461538 | BK19: TOTAL PROGRAM REBATE | BL19: =IF(TRIM(BL1)="","",IF((BL1)<2500,0,IF(OR(TRIM(BL1)="",TRIM(BL18)=""),"",(BL1)*(BL18)))) -> 
C20: Bayleton® FLO | K20: 1 | L20: 2 x 2.5 gal/case | P20: 5 | R20: 0.5 | T20: oz/1,000 | X20: =IF(TRIM(R20)<>"",(P20*128)/(R20*43.56),"") -> 29.38475666 | AE20: Tribute® Total | AN20: 1 | AQ20: 6 x 6 oz/case | AU20: 36 | AW20: 3 | AY20: oz./acre | BA20: =IF(TRIM(AW20)<>"",(AU20)/AW20,"") -> 12 | BI20: Calculate Select Rebate | BL20: =IF(CM129>=2500,IF(TRIM(AW127)<>"",AW127,""),"") -> 
C21: =CONCATENATE(IF(CH85=2,"Chipco® Signature™","Signature™ XTRA Stressgard")) -> Signature™ XTRA Stressgard | K21: 14 | L21: 4 x 5.5 lbs/case | P21: 308 | R21: 4 | T21: oz/1,000 | X21: =IF(TRIM(R21)<>"",(P21*16)/(R21*43.56),"") -> 28.28282828 | AE21: Specticle Total | AN21: 2 | AQ21: 4 x 144 oz/case | AU21: 1152 | AW21: 16 | AY21: oz/1,000 | BA21: 1.6
C22: Interface® Stressgard | K22: 9 | L22: 2 x 2.5 gal/case | P22: 45 | R22: 4 | T22: oz/1,000 | X22: =IF(TRIM(R22)<>"",(P22*128)/(R22*43.56),"") -> 33.05785124
C23: Merit 75® WSP | K23: 1 | L23: 110 X 1.6 oz/drum | P23: 11 | R23: 6.4 | T23: oz/acre | X23: =IF(TRIM(R23)<>"",(P23*16)/(R23),"") -> 27.5
X24: =IF(TRIM(R24)<>"",(P24*16)/(R24*43.56),"") -> 
C25: Tartan® Stressgard | K25: 6 | L25: 2 X 2.5 gal/case | P25: 30 | R25: 1.5 | T25: oz/1,000 | X25: =IF(TRIM(R25)<>"",(P25*128)/(R25*43.56),"") -> 58.76951331 | AE25: =CONCATENATE("Bayer Stressgard® PAK",IF(CH85=2," - NOT AVAIL.",CONCATENATE(" - $",FIXED(AR85,2,FALSE)))) -> Bayer Stressgard® PAK - $4,800.00 | BK25: Grand Total | BL25: =IF(AND(TRIM(BL19)="",TRIM(BL20)=""),"",SUM(BL19,BL20)) -> 
AE27: =IF(CH85=2,"THIS PAK IS NOT AVAILABLE FOR CALIFORNIA CUSTOMERS.","With Stressgard Formulation Technology, this PAK program enhances overall turf quality, improves plant health and protects against harsh environmental stress that can damage your turf.") -> With Stressgard Formulation Technology, this PAK program enhances overall turf quality, improves plant health and protects against harsh environmental stress that can damage your turf.
C28: =CONCATENATE("Bayer Essentials PAK",IF(CH85=2," - NOT AVAIL.",CONCATENATE(" - $",FIXED(AR80,2,FALSE)))) -> Bayer Essentials PAK - $17,000.00
AE29: PRODUCTS | AN29: UNITS/ PAK | AQ29: UNIT SIZE | AU29: GAL/LB /OZ | AW29: USE RATE | BA29: ACRES TREATED | BI29: 2500 | BJ29: 10000 | BK29: =IF(AND($BL$17>=BI29,$BL$17<BJ29),((BJ29)-($BL$17)),"") -> 
C30: =IF(CH85=2,"THIS PAK IS NOT AVAILABLE FOR CALIFORNIA CUSTOMERS.","The Bayer Essentials PAK is built on key products you know, and trust, with the flexibility you demand.") -> The Bayer Essentials PAK is built on key products you know, and trust, with the flexibility you demand. | BI30: 10000 | BJ30: 15000 | BK30: =IF(AND($BL$17>=BI30,$BL$17<BJ30),((BJ30)-($BL$17)),"") -> 
AE31: =IF(CH97=2,"Chipco Signature","Signature XTRA Stressgard") -> Signature XTRA Stressgard | AN31: 4 | AQ31: 4 x 5.5 lbs/case | AU31: 88 | AW31: 4 | AY31: oz/1,000 | BA31: =IF(TRIM(AW31)<>"",(AU31*16)/(AW31*43.56),"") -> 8.080808081 | BI31: 15000 | BJ31: 25000
C32: PRODUCTS | K32: UNITS/ PAK | L32: UNIT SIZE | P32: GAL/LB /OZ | R32: USE RATE | X32: ACRES TREATED | AE32: Interface Stressgard | AN32: 1 | AQ32: 2 x 2.5 gal/case | AU32: 5 | AW32: 4 | AY32: oz/1,000 | BA32: =IF(TRIM(AW32)<>"",(AU32*128)/(AW32*43.56),"") -> 3.673094582 | BI32: 25000 | BJ32: 28500
AE33: Tartan Stressgard | AN33: 1 | AQ33: 2 X 2.5 gal/case | AU33: 5 | AW33: 2 | AY33: oz/1,000 | BA33: =IF(TRIM(AW33)<>"",(AU33*128)/(AW33*43.56),"") -> 7.346189164 | BI33: 28500 | BJ33: 40000
C34: Bayleton FLO | K34: 1 | L34: 2 x 2.5 gal/case | P34: 5 | R34: 0.5 | T34: oz/1,000 | X34: =IF(TRIM(R34)<>"",(P34*128)/(R34*43.56),"") -> 29.38475666
C36: =IF(CH85=2,"Chipco Signature","Signature XTRA Stressgard") -> Signature XTRA Stressgard | K36: 8 | L36: 4 x 5.5 lbs/case | P36: 176 | R36: 4 | T36: oz/1,000 | X36: =IF(TRIM(R36)<>"",(P36*16)/(R36*43.56),"") -> 16.16161616 | BK36: =SUM(BK29:BK33) -> 0 | BL36: =IF(BL17>=2500,IF(BL3>=0.08,0.09,IF(BL3>=0.05,0.08,(BL18)+0.01)),"") -> 0.09 | BM36: =TEXT(BL36,"0%") -> 9%
C37: 26GT® | K37: 6 | L37: 2 x 2.5 gal/case | P37: 30 | R37: 3 | T37: oz/1,000 | X37: =IF(TRIM(R37)<>"",(P37*128)/(R37*43.56),"") -> 29.38475666 | AE37: =CONCATENATE("Bayer Fairy Ring PAK",IF(CH85=4," - NOT AVAIL.",CONCATENATE(" - $",FIXED(AR86,2,FALSE)))) -> Bayer Fairy Ring PAK - $4,500.00 | BI37: =IF(AND(BK36>0,BK36<40000),CONCATENATE("You are only ",TEXT(BK36,"$#,##0")," from moving up to Rebate Level ",TEXT(BL36,"0%"),"."),"") -> 
C38: Merit 75 WSP | K38: 1 | L38: 110 X 1.6 oz/drum | P38: 11 | R38: 6.4 | T38: oz/acre | X38: =IF(TRIM(R38)<>"",(P38*16)/(R38),"") -> 27.5 | BI38: =IF(AND(BK36>0,BK36<40000),"You are only ","") ->  | BJ38: =IF(AND(BK36>0,BK36<40000),TEXT(BK36,"$#,##0"),"") ->  | BK38: =IF(AND(BK36>0,BK36<40000)," from moving up to Rebate Level ","") ->  | BN38: =IF(AND(BK36>0,BK36<40000),TEXT(BM36,"0%"),"") -> 
C39: Tartan Stressgard | K39: 3 | L39: 2 X 2.5 gal/case | P39: 15 | R39: 1.5 | T39: oz/1,000 | X39: =IF(TRIM(R39)<>"",(P39*128)/(R39*43.56),"") -> 29.38475666 | AE39: =IF(CH85=4,"THIS PAK IS NOT AVAILABLE FOR NEW YORK CUSTOMERS.","Preventative and curative fairy ring management tools.") -> Preventative and curative fairy ring management tools.
AE40: PRODUCTS | AN40: UNITS/ PAK | AQ40: UNIT SIZE | AU40: GAL/LB /OZ | AW40: USE RATE | BA40: ACRES TREATED
C42: =CONCATENATE("Bayer Fairway PAK",IF(CH85=2," - NOT AVAIL.",CONCATENATE(" - $",FIXED(AR81,2,FALSE)))) -> Bayer Fairway PAK - $12,000.00 | AE42: Tartan Stressgard | AN42: 1 | AQ42: 2 X 2.5 gal/case | AU42: 5 | AW42: 2 | AY42: oz/1,000 | BA42: =IF(TRIM(AW42)<>"",(AU42*128)/(AW42*43.56),"") -> 7.346189164
AE43: Prostar 70 WG | AN43: 4 | AQ43: 4 x 3 lb/case | AU43: 48 | AW43: 2.2 | AY43: oz/1,000 | BA43: =IF(TRIM(AW43)<>"",(AU43*16)/(AW43*43.56),"") -> 8.014024543
C44: =IF(CH85=2,"THIS PAK IS NOT AVAILABLE FOR CALIFORNIA CUSTOMERS.","Pairs well with Fiata® Stressgard utilizing select product rebate.") -> Pairs well with Fiata® Stressgard utilizing select product rebate.
C45: PRODUCTS | K45: UNITS/ PAK | L45: UNIT SIZE | P45: GAL/LB /OZ | R45: USE RATE | X45: ACRES TREATED
AE46: =CONCATENATE("Bayer Pythium PAK",IF(CH85=2," - NOT AVAIL.",CONCATENATE(" - $",FIXED(AR87,2,FALSE)))) -> Bayer Pythium PAK - $4,350.00
C47: Mirage® Stressgard | K47: 2 | L47: 2 x 2.5 gal/case | P47: 10 | R47: 1 | T47: oz/1,000 | X47: =IF(TRIM(R47)<>"",(P47*128)/(R47*43.56),"") -> 29.38475666
C48: Interface Stressgard | K48: 6 | L48: 2 x 2.5 gal/case | P48: 30 | R48: 3 | T48: oz/1,000 | X48: =IF(TRIM(R48)<>"",(P48*128)/(R48*43.56),"") -> 29.38475666 | AE48: =IF(CH85=2,"THIS PAK IS NOT AVAILABLE FOR CALIFORNIA CUSTOMERS.","Preventative and curative pythium management tools.") -> Preventative and curative pythium management tools.
C49: Bayleton FLO | K49: 1 | L49: 2 x 2.5 gal/case | P49: 5 | R49: 0.5 | T49: oz/1,000 | X49: =IF(TRIM(R49)<>"",(P49*128)/(R49*43.56),"") -> 29.38475666 | AE49: PRODUCTS | AN49: UNITS/ PAK | AQ49: UNIT SIZE | AU49: GAL/LB /OZ | AW49: USE RATE | BA49: ACRES TREATED
C50: 26GT | K50: 6 | L50: 2 x 2.5 gal/case | P50: 30 | R50: 3 | T50: oz/1,000 | X50: =IF(TRIM(R50)<>"",(P50*128)/(R50*43.56),"") -> 29.38475666
AE51: =IF(CH85=2,"Chipco Signature","Signature XTRA Stressgard") -> Signature XTRA Stressgard | AN51: 4 | AQ51: 4 x 5.5 lbs/case | AU51: 88 | AW51: 4 | AY51: oz/1,000 | BA51: =IF(TRIM(AW51)<>"",(AU51*16)/(AW51*43.56),"") -> 8.080808081 | CK51: 1
AE52: Banol | AN52: 3 | AQ52: 2 x 1 gal/case | AU52: 6 | AW52: 2 | AY52: oz/1,000 | BA52: =IF(TRIM(AW52)<>"",(AU52*128)/(AW52*43.56),"") -> 8.815426997
C53: =CONCATENATE("Core Program PAK",IF(OR(CH85=2,CH85=4)," - NOT AVAIL.",CONCATENATE(" - $",FIXED(AR82,2,FALSE)))) -> Core Program PAK - $10,250.00 | BA53: =IF(TRIM(AW53)<>"",(AU53*16)/(AW53*43.56),"") -> 
C55: =IF(CH85=2,"THIS PAK IS NOT AVAILABLE FOR CALIFORNIA CUSTOMERS.",IF(CH85=4,"THIS PAK IS NOT AVAILABLE FOR NEW YORK CUSTOMERS.","Build your success around our industry leading solutions. Perfect turf starts with these core progam components.")) -> Build your success around our industry leading solutions. Perfect turf starts with these core progam components. | CB55: 1
AE56: =CONCATENATE("Bayer Leaf Spot PAK",IF(CH85=2," - NOT AVAIL.",CONCATENATE(" - $",FIXED(AR88,2,FALSE)))) -> Bayer Leaf Spot PAK - $3,550.00
C57: PRODUCTS | K57: UNITS/ PAK | L57: UNIT SIZE | P57: GAL/LB /OZ | R57: USE RATE | X57: ACRES TREATED
AE58: =IF(CH85=2,"THIS PAK IS NOT AVAILABLE FOR CALIFORNIA CUSTOMERS.","Industry-leading solutions for effective leaf spot control.") -> Industry-leading solutions for effective leaf spot control.
C59: =IF(CH85=2,"Chipco Signature","Signature XTRA Stressgard") -> Signature XTRA Stressgard | K59: 4 | L59: 4 x 5.5 lbs/case | P59: 88 | R59: 4 | T59: oz/1,000 | X59: =IF(TRIM(R59)<>"",(P59*16)/(R59*43.56),"") -> 8.080808081 | AE59: PRODUCTS | AN59: UNITS/ PAK | AQ59: UNIT SIZE | AU59: GAL/LB /OZ | AW59: USE RATE | BA59: ACRES TREATED
C60: Interface Stressgard | K60: 2 | L60: 2 x 2.5 gal/case | P60: 10 | R60: 4 | T60: oz/1,000 | X60: =IF(TRIM(R60)<>"",(P60*128)/(R60*43.56),"") -> 7.346189164
C61: Prostar® 70 WG | K61: 4 | L61: 4 x 3 lb/case | P61: 48 | R61: 2.2 | T61: oz/1,000 | X61: =IF(TRIM(R61)<>"",(P61*16)/(R61*43.56),"") -> 8.014024543 | AE61: Interface Stressgard | AN61: 2 | AQ61: 2 x 2.5 gal/case | AU61: 10 | AW61: 4 | AY61: oz/1,000 | BA61: =IF(TRIM(AW61)<>"",(AU61*128)/(AW61*43.56),"") -> 7.346189164
C62: Banol | K62: 2 | L62: 2 x 1 gal/case | P62: 4 | R62: 2 | T62: oz/1,000 | X62: =IF(TRIM(R62)<>"",(P62*128)/(R62*43.56),"") -> 5.876951331 | AE62: =IF(CH75=2,"Chipco Signature","Signature XTRA Stressgard") -> Signature XTRA Stressgard | AN62: 4 | AQ62: 4 x 5.5 lbs/case | AU62: 88 | AW62: 4 | AY62: oz/1,000 | BA62: =IF(TRIM(AW62)<>"",(AU62*16)/(AW62*43.56),"") -> 8.080808081
C63: Tartan Stressgard | K63: 1 | L63: 2 x 2.5 gal/case | P63: 5 | R63: 2 | T63: oz/1,000 | X63: =IF(TRIM(R63)<>"",(P63*128)/(R63*43.56),"") -> 7.346189164
C64: Mirage Stressgard | K64: 1 | L64: 2 x 2.5 gal/case | P64: 5 | R64: 1 | T64: oz/1,000 | X64: =IF(TRIM(R64)<>"",(P64*128)/(R64*43.56),"") -> 14.69237833
AE65: =CONCATENATE("Bayer Utility PAK - $",FIXED(AR89,2,FALSE)) -> Bayer Utility PAK - $2,400.00
AE67: Versatile uses including proven solution for your snow mold problems as well as Dollar Spot, Brown Patch, Anthracnose, and other diseases while enhancing turf quality.
C68: =CONCATENATE("Bayer Greens PAK",IF(CH85=2," - NOT AVAIL.",CONCATENATE(" - $",FIXED(AR83,2,FALSE)))) -> Bayer Greens PAK - $6,250.00
AE69: PRODUCTS | AN69: UNITS/ PAK | AQ69: UNIT SIZE | AU69: GAL/LB /OZ | AW69: USE RATE | BA69: ACRES TREATED
C70: =IF(CH85=2,"THIS PAK IS NOT AVAILABLE FOR CALIFORNIA CUSTOMERS.","The standard for your greens management program, anchored by the products that provide superior turf quality.") -> The standard for your greens management program, anchored by the products that provide superior turf quality.
C71: PRODUCTS | K71: UNITS/ PAK | L71: UNIT SIZE | P71: GAL/LB /OZ | R71: USE RATE | X71: ACRES TREATED | AE71: Interface Stressgard | AN71: 3 | AQ71: 2 x 2.5 gal/case | AU71: 15 | AW71: 4 | AY71: oz/1,000 | BA71: =IF(TRIM(AW71)<>"",(AU71*128)/(AW71*43.56),"") -> 11.01928375
AE72: Mirage Stressgard | AN72: 1 | AQ72: 2 x 2.5 gal/case | AU72: 5 | AW72: 1 | AY72: oz/1,000 | BA72: =IF(TRIM(AW72)<>"",(AU72*128)/(AW72*43.56),"") -> 14.69237833
C73: =IF(CH85=2,"Chipco Signature","Signature XTRA Stressgard") -> Signature XTRA Stressgard | K73: 8 | L73: 4 x 5.5 lbs/case | P73: 176 | R73: 4 | T73: oz/1,000 | X73: =IF(TRIM(R73)<>"",(P73*16)/(R73*43.56),"") -> 16.16161616
C74: 26GT | K74: 5 | L74: 2 x 2.5 gal/case | P74: 25 | R74: 4 | T74: oz/1,000 | X74: =IF(TRIM(R74)<>"",(P74*128)/(R74*43.56),"") -> 18.36547291
CG77: 5150 | CJ77: Regular | CK77: California | CL77: Washington | CM77: Total Purch | CN77: HTHT Calc
AC78: PRODUCTS | AP78: # PAKS | AR78: PRICE/PAK | AV78: TOTAL $ | CG78: 4500 | CJ78: 28500 | CL78: =CJ78+(CJ78*0.007) -> 28699.5 | CM78: =IF(TRIM(AV79)<>"",AP79*CJ78,"") ->  | CN78: =IF(TRIM(AP79)<>"",AP79*237,"") -> 
AC79: =IF(CH85=2,"","Bayer Season PAK") -> Bayer Season PAK | AR79: =IF(CH85=2,"",IF($CH$85=1,CL78,IF($CH$85=2,CK78,CJ78))) -> 28500 | AV79: =IF(CH85=2,"",IF(TRIM(AP79)<>"",AP79*AR79,"")) ->  | CG79: 4350 | CJ79: 17000 | CL79: 17119 | CM79: =IF(TRIM(AV80)<>"",AP80*CJ79,"") ->  | CN79: =IF(TRIM(AP80)<>"",AP80*95,"") -> 
AC80: =IF(CH85=2,"","Bayer Essentials PAK") -> Bayer Essentials PAK | AR80: =IF(CH85=2,"",IF($CH$85=1,CL79,IF($CH$85=2,CK79,CJ79))) -> 17000 | AV80: =IF(CH85=2,"",IF(TRIM(AP80)<>"",AP80*AR80,"")) ->  | CG80: 3550 | CJ80: 12000 | CL80: 12084 | CM80: =IF(TRIM(AV81)<>"",AP81*CJ80,"") ->  | CN80: =IF(TRIM(AP81)<>"",AP81*55,"") -> 
AC81: =IF(CH85=2,"","Bayer Fairway PAK") -> Bayer Fairway PAK | AR81: =IF(CH85=2,"",IF($CH$85=1,CL80,IF($CH$85=2,CK80,CJ80))) -> 12000 | AV81: =IF(CH85=2,"",IF(TRIM(AP81)<>"",AP81*AR81,"")) ->  | CJ81: 10250 | CL81: 10321.75 | CM81: =IF(TRIM(AP82)<>"",AP82*CJ81,"") ->  | CN81: =IF(TRIM(AP82)<>"",AP82*44,"") -> 
AC82: =IF(OR(CH85=2,CH85=4),"","Core Program PAK") -> Core Program PAK | AR82: =IF(OR(CH85=2,CH85=4),"",IF($CH$85=1,CL81,IF($CH$85=2,CK81,CJ81))) -> 10250 | AV82: =IF(OR(CH85=2,CH85=4),"",IF(TRIM(AP82)<>"",AP82*AR82,"")) ->  | CJ82: 6250 | CL82: 6293.75 | CN82: =IF(TRIM(AP83)<>"",AP83*46,"") -> 
AC83: =IF(CH85=2,"","Bayer Greens PAK") -> Bayer Greens PAK | AR83: =IF($CH$85=1,CL82,IF($CH$85=2,CK82,CJ82)) -> 6250 | AV83: =IF(CH85=2,"",IF(TRIM(AP83)<>"",AP83*AR83,"")) ->  | CA83: =MOD(N93,0.5) -> 0 | CJ83: 5150 | CK83: =CJ83+(CJ83*0.02175) -> 5262.0125 | CL83: 5186.05 | CN83: =IF(TRIM(AP84)<>"",AP84*26,"") -> 
AC84: =IF(OR(CH85=1,CH85=4),"","Warm Season Herbicide PAK") -> Warm Season Herbicide PAK | AR84: 5150 | AV84: =IF(OR(CH85=1,CH85=4),"",IF(TRIM(AP84)<>"",AP84*AR84,"")) ->  | CH84: WA/CA/(N/A) | CJ84: 4800 | CL84: 4833.6 | CN84: =IF(TRIM(AP85)<>"",AP85*43,"") -> 
AC85: =IF(CH85=2,"","Bayer Stressgard PAK") -> Bayer Stressgard PAK | AR85: 4800 | AV85: =IF(CH85=2,"",IF(TRIM(AP85)<>"",AP85*AR85,"")) ->  | CA85: =MOD(N94,0.5) -> 0 | CH85: 3 | CJ85: 4500 | CK85: 4597.875 | CL85: 4531.5
AC86: =IF(CH85=4,"","Bayer Fairy Ring PAK") -> Bayer Fairy Ring PAK | AR86: =IF(CH85=4,"",IF($CH$85=1,CL85,IF($CH$85=2,CK85,CJ85))) -> 4500 | AV86: =IF(CH85=4,"",IF(TRIM(AP86)<>"",AP86*AR86,"")) ->  | CA86: =MOD(N98,0.25) -> 0 | CJ86: 4350 | CL86: =CJ86+(CJ86*0.007) -> 4380.45 | CN86: =IF(TRIM(AP87)<>"",AP87*19,"") -> 
AC87: =IF(CH85=2,"","Bayer Pythium PAK") -> Bayer Pythium PAK | AR87: 4350 | AV87: =IF(CH85=2,"",IF(TRIM(AP87)<>"",AP87*AR87,"")) ->  | CJ87: 3550 | CL87: 3574.85 | CN87: =IF(TRIM(AP88)<>"",AP88*20,"") -> 
AC88: =IF(CH85=2,"","Bayer Leaf Spot PAK") -> Bayer Leaf Spot PAK | AR88: 3550 | AV88: =IF(CH85=2,"",IF(TRIM(AP88)<>"",AP88*AR88,"")) ->  | CJ88: 2400 | CK88: =CJ88+(CJ88*0.02175) -> 2452.2 | CL88: =CJ88+(CJ88*0.007) -> 2416.8 | CN88: =IF(TRIM(AP89)<>"",AP89*34,"") -> 
AC89: Bayer Utility PAK | AR89: =IF($CH$85=1,CL88,IF($CH$85=2,CK88,CJ88)) -> 2400 | AV89: =IF(TRIM(AP89)<>"",AP89*AR89,"") ->  | CA89: =MOD(N102,0.5) -> 0 | CM89: =SUM(CM78:CM88) -> 0
AV90: (A) | AW90: =IF(SUM(AV79:AY89)>0,SUM(AV79:AY89),"") -> 
CA91: =MOD(N109,0.5) -> 0 | CJ91: Regular | CK91: California | CL91: Washington | CM91: Total Purch
B92: AGENCY PRODUCTS* | K92: UNIT SIZE | N92: # UNITS | Q92: PRICE/UNIT | U92: USE RATE / 1,000 ft2 | Y92: USE RATE / ACRE | AD92: ACRES TREATED / UNIT | AI92: TOTAL $ | AP92: SELECT REBATE/ MINIMUM QTYǂ | AV92: SELECT REBATE $ | CA92: =MOD(N111,0.125) -> 0 | CJ92: 1875 | CK92: =CJ92 + (CJ92*0.02175) -> 1915.78125 | CL92: =CJ92 + (CJ92*0.007) -> 1888.125 | CM92: =IF(TRIM(N93)<>"",N93*CJ92,"") -> 
B93: Banol | K93: 2 X 2.5 gal/case | Q93: =IF($CH$85=1,CL92,IF($CH$85=2,CK92,CJ92)) -> 1875 | U93: 2 | Y93: =IF(TRIM(U93)<>"",U93*43.56,"") -> 87.12 | AD93: =IF(TRIM(Y93)<>"",IF(TRIM(N93)<>"",(N93*(5*128))/Y93,(5*128)/Y93),"") -> 7.346189164 | AI93: =IF(TRIM(N93)<>"",N93*Q93,"") ->  | AP93: $60/gal – 10 gal | AV93: =IF(TRIM(N93)<>"",IF(VALUE(CE124)>=10,((N93)/0.2)*60,""),"") ->  | CJ93: 2700 | CK93: =CJ93 + (CJ93*0.02175) -> 2758.725 | CL93: =CJ93 + (CJ93*0.007) -> 2718.9 | CM93: =IF(TRIM(AI94)<>"",N94*CJ93,"") -> 
B94: =IF(CH85=2,"","Bayleton FLO") -> Bayleton FLO | K94: =IF(CH85=2,"","2 X 2.5 gal/case") -> 2 X 2.5 gal/case | Q94: =IF($CH$85=1,CL93,IF($CH$85=2,"",CJ93)) -> 2700 | U94: 0.5 | Y94: =IF(CH85=2,"",IF(TRIM(U94)<>"",U94*43.56,"")) -> 21.78 | AD94: =IF(CH85=2,"",IF(TRIM(Y94)<>"",IF(TRIM(N94)<>"",(N94*(5*128))/Y94,(5*128)/Y94),"")) -> 29.38475666 | AI94: =IF(CH85=2,"",IF(TRIM(N94)<>"",N94*Q94,"")) ->  | AP94: =IF(CH85=2,"","$70/gal – 10 gal") -> $70/gal – 10 gal | AV94: =IF(CH85=2,"",IF(TRIM(N94)<>"",IF(VALUE(CE126)>=10,((N94)/0.2)*70,""),"")) ->  | CJ94: 769.6 | CK94: 786.3388 | CL94: 774.9872 | CM94: =IF(TRIM(N95)<>"",N95*CJ94,"") -> 
B95: =IF(OR(CH85=1,CH85=4),"","Celsius® WG") -> Celsius® WG | K95: =IF(OR(CH85=1,CH85=4),"","8 X 10 oz/case") -> 8 X 10 oz/case | Q95: =IF(OR(CH85=1,CH85=4),"",IF($CH$85=1,CL94,IF($CH$85=2,CK94,CJ94))) -> 769.6 | U95: 0.085 | Y95: =IF(OR(CH85=1,CH85=4),"",IF(TRIM(U95)<>"",U95*43.56,"")) -> 3.7026 | AD95: =IF(OR(CH85=1,CH85=4),"",IF(TRIM(Y95)<>"",IF(TRIM(N95)<>"",(N95*(8*10))/Y95,(8*10)/Y95),"")) -> 21.60643872 | AI95: =IF(OR(CH85=1,CH85=4),"",IF(TRIM(N95)<>"",N95*Q95,"")) ->  | AP95: =IF(OR(CH85=1,CH85=4),""," $15/case – 2 case") -> $15/case – 2 case | AV95: =IF(OR(CH85=1,CH85=4),"",IF(TRIM(N95)<>"",IF(VALUE(N95)>=2,((N95)/0.125)*1.875,""),"")) ->  | CA95: =MOD(N115,0.5) -> 0 | CJ95: 220 | CK95: 224.785 | CL95: 221.54
B96: =IF(OR(CH85=1,CH85=2,CH85=4),"","Chipco Choice") -> Chipco Choice | K96: =IF(OR(CH85=1,CH85=2,CH85=4),"","1Yr Agreement/acre") -> 1Yr Agreement/acre | Q96: =IF(OR(CH85=1,CH85=2,CH85=4),"",CJ95) -> 220 | AI96: =IF(OR(CH85=1,CH85=2,CH85=4),"",IF(TRIM(N96)<>"",N96*Q96,"")) ->  | AP96: =IF(OR(CH85=1,CH85=2,CH85=4),"","$10/acre – 45 acre") -> $10/acre – 45 acre | AV96: =IF(OR(CH85=1,CH85=2,CH85=4),"",IF(TRIM(N96)<>"",IF(VALUE(N96)>=45,(N96)*10,""),"")) ->  | CJ96: 250 | CK96: 255.4375 | CL96: 251.75 | CN96: =IF(TRIM(N97)<>"",CJ96*N97*0.01,"") -> 
B97: Fiata®Stressgard | K97: 2 X 2.5 gal/case | Q97: 250 | U97: 5 | Y97: =IF(TRIM(U97)<>"",U97*43.56,"") -> 217.8 | AD97: =IF(TRIM(Y97)<>"",IF(TRIM(N97)<>"",(N97*(5*128))/Y97,(5*128)/Y97),"") -> 2.938475666 | AI97: =IF(TRIM(N97)<>"",N97*Q97,"") ->  | AP97: $10/gal – 100 gal | AV97: =IF(TRIM(N97)<>"",IF(VALUE(N97)>=20,((N97)/0.2)*10,""),"") ->  | CA97: =MOD(N117,0.05) -> 0 | CJ97: 772.5 | CK97: 789.301875 | CL97: 777.9075 | CN97: =IF(TRIM(N98)<>"",CJ97*N98*0.01,"") -> 
B98: Interface Stressgard | K98: 2 X 2.5 gal/case | Q98: 772.5 | U98: 4 | Y98: 174.24 | AD98: =IF(TRIM(Y98)<>"",IF(TRIM(N98)<>"",(N98*(5*128))/Y98,(5*128)/Y98),"") -> 3.673094582 | AP98: $15/gal – 40 gal | AV98: =IF(TRIM(N98)<>"",IF(VALUE(CE130)>=40,((N98)/0.2)*15,""),"") ->  | CA98: =MOD(N118,0.25) -> 0 | CJ98: 1250 | CK98: 1277.1875 | CL98: 1258.75
B99: Merit 75 WSP Mega Mini | K99: 110 X 1.6 oz/drum | Q99: 1250 | U99: 0.197 | Y99: 8.58132 | AD99: =IF(TRIM(Y99)<>"",IF(TRIM(N99)<>"",(N99*(110*1.6))/Y99,(110*1.6)/Y99),"") -> 20.50966518 | AP99: $200/drum – 2 drum | AV99: =IF(TRIM(N99)<>"",IF(VALUE(CE131)>=2,(N99)*200,""),"") ->  | CA99: =MOD(N119,0.25) -> 0 | CJ99: 875 | CK99: 894.03125 | CL99: 881.125 | CN99: =IF(TRIM(N100)<>"",CJ99*N100*0.01,"") -> 
B100: Mirage Stressgard | K100: 2 X 2.5 gal/case | Q100: 875 | U100: 1 | Y100: 43.56 | AD100: =IF(TRIM(Y100)<>"",IF(TRIM(N100)<>"",(N100*(5*128))/Y100,(5*128)/Y100),"") -> 14.69237833 | AP100: $15/gal – 20 gal | AV100: =IF(TRIM(N100)<>"",IF(VALUE(CE132)>=20,((N100)/0.2)*15,""),"") ->  | CA100: =MOD(N120,0.5) -> 0 | CJ100: 491.31 | CK100: 501.9959925 | CL100: 494.74917 | CN100: =IF(TRIM(N102)<>"",N102*CJ101*0.01,"") -> 
B101: Nortica® 10 WP | K101: 35 lb/bag | Q101: 491.31 | U101: 1.15 | Y101: 50.094 | AD101: =IF(TRIM(Y101)<>"",IF(TRIM(N101)<>"",(N101*(35))/Y101,(35)/Y101),"") -> 0.6986864694 | AP101: $35/bag – 5 bag | AV101: =IF(TRIM(N101)<>"",IF(VALUE(N101)>=5,(N101)*35,""),"") ->  | CJ101: 825 | CK101: 842.94375 | CL101: 830.775
B102: =IF(OR(CH85=1,CH85=4),"","Ronstar® FLO") -> Ronstar® FLO | K102: =IF(OR(CH85=1,CH85=4),""," 2 X 2.5 gal/case") -> 2 X 2.5 gal/case | Q102: 825 | U102: 2 | Y102: =IF(OR(CH85=1,CH85=4),"",IF(TRIM(U102)<>"",U102*43.56,"")) -> 87.12 | AD102: =IF(OR(CH85=1,CH85=4),"",IF(TRIM(Y102)<>"",IF(TRIM(N102)<>"",(N102*(5*128))/Y102,(5*128)/Y102),"")) -> 7.346189164 | AI102: =IF(OR(CH85=1,CH85=4),"",IF(TRIM(N102)<>"",N102*Q102,"")) ->  | AP102: =IF(OR(CH85=1,CH85=4),"","$25/gal – 30 gal") -> $25/gal – 30 gal | AV102: =IF(OR(CH85=1,CH85=4),"",IF(TRIM(N102)<>"",IF(VALUE(N102)>=6,((N102)/0.2)*25,""),"")) ->  | CA102: =MOD(N124,0.25) -> 0 | CJ102: 1980 | CK102: 2023.065 | CL102: 1993.86 | CN102: =IF(TRIM(N103)<>"",CJ102*N103*0.01,"") -> 
B103: Tartan Stressgard | K103: 2 X 2.5 gal/case | Q103: 1980 | U103: 2 | Y103: 87.12 | AD103: =IF(TRIM(Y103)<>"",IF(TRIM(N103)<>"",(N103*(5*128))/Y103,(5*128)/Y103),"") -> 7.346189164 | AP103: $50/gal – 20 gal | AV103: =IF(TRIM(N103)<>"",IF(VALUE(CE135)>=20,((N103)/0.2)*50,""),"") ->  | CA103: =MOD(N130,0.5) -> 0 | CJ103: 125 | CK103: 127.5 | CL103: 0 | CN103: =IF(TRIM(N105)<>"",N105*CJ104*0.01,"") -> 
B104: =IF(OR(CH85=1,CH85=4),"","TopChoice® (20+ bags)") -> TopChoice® (20+ bags) | K104: =IF(OR(CH85=1,CH85=4),"","50 lb/bag") -> 50 lb/bag | Q104: =IF(OR(CH85=1,CH85=4),"",IF($CH$85=1,CL103,IF($CH$85=2,CK103,CJ103))) -> 125 | U104: 2 | Y104: =IF(OR(CH85=1,CH85=4),"",IF(TRIM(U104)<>"",U104*43.56,"")) -> 87.12 | AD104: =IF(OR(CH85=1,CH85=4),"",IF(TRIM(Y104)<>"",IF(TRIM(N104)<>"",(N104*(50))/Y104,(50)/Y104),"")) -> 0.5739210285 | AI104: =IF(OR(CH85=1,CH85=4),"",IF(CH85=1,"",IF(TRIM(N104)<>"",N104*Q104,""))) ->  | AP104: =IF(OR(CH85=1,CH85=4),"","$20/bag – 20 bag") -> $20/bag – 20 bag | AV104: =IF(OR(CH85=1,CH85=4),"",IF(TRIM(N104)<>"",IF(VALUE(N104)>=20,(N104)*20,""),"")) ->  | CJ104: 137.5 | CK104: 140.5 | CL104: 0
B105: =IF(OR(CH85=1,CH85=4),"","TopChoice® (1-19 bags)") -> TopChoice® (1-19 bags) | K105: =IF(OR(CH85=1,CH85=4),"","50 lb/bag") -> 50 lb/bag | Q105: =IF(OR(CH85=1,CH85=4),"",IF($CH$85=1,CL104,IF($CH$85=2,CK104,CJ104))) -> 137.5 | U105: 2 | Y105: =IF(OR(CH85=1,CH85=4),"",IF(TRIM(U105)<>"",U105*43.56,"")) -> 87.12 | AD105: =IF(OR(CH85=1,CH85=4),"",IF(TRIM(Y105)<>"",IF(TRIM(N105)<>"",(N105*50)/Y105,50/Y105),"")) -> 0.5739210285 | AI105: =IF(OR(CH85=1,CH85=4),"",IF(TRIM(N105)<>"",N105*Q105,"")) ->  | AP105: =IF(OR(CH85=1,CH85=4),"","$10/bag") -> $10/bag | AV105: =IF(OR(CH85=1,CH85=4),"",IF(TRIM(N105)<>"",(N105)*10,"")) ->  | CJ105: 625 | CK105: =CJ105 + (CJ105*0.02175) -> 638.59375 | CL105: =CJ105 + (CJ105*0.007) -> 629.375 | CM105: =IF(TRIM(AI106)<>"",N106*CJ105,"") ->  | CN105: =IF(TRIM(AI106)<>"",CJ105*N106*0.01,"") -> 
B106: =IF(CH85=2,"","Signature XTRA Stressgard") -> Signature XTRA Stressgard | K106: =IF(CH85=2,"","4 X 5.5 lbs/case") -> 4 X 5.5 lbs/case | Q106: =IF($CH$85=1,CL105,IF($CH$85=2,"",CJ105)) -> 625 | U106: 4 | Y106: =IF(CH85=2,"",IF(TRIM(U106)<>"",U106*43.56,"")) -> 174.24 | AD106: =IF(CH85=2,"",IF(TRIM(Y106)<>"",IF(TRIM(N106)<>"",(N106*(44*16))/Y106,(44*16)/Y106),"")) -> 4.04040404 | AI106: =IF(CH85=2,"",IF(TRIM(N106)<>"",N106*Q106,"")) ->  | CJ106: 1133.25 | CK106: 1157.898187 | CL106: 1141.18275 | CM106: =IF(TRIM(N107)<>"",N107*CJ106,"") ->  | CN106: =IF(TRIM(N107)<>"",CJ106*N107*0.01,"") -> 
B107: =IF(CH85=2,"Chipco Signature",CONCATENATE("Chipco Signature","™")) -> Chipco Signature™ | K107: 8 X 5.5 lbs/case | Q107: =IF($CH$85=1,CL106,IF($CH$85=2,CK106,CJ106)) -> 1133.25 | U107: 4 | Y107: =IF(TRIM(U107)<>"",U107*43.56,"") -> 174.24 | AD107: =IF(TRIM(Y107)<>"",IF(TRIM(N107)<>"",(N107*(44*16))/Y107,(44*16)/Y107),"") -> 4.04040404 | AI107: =IF(TRIM(N107)<>"",N107*Q107,"") ->  | CJ107: 2240 | CK107: 2288.72 | CL107: 2255.68
B108: =IF(OR(CH85=1,CH85=4),"","Revolver®") -> Revolver® | K108: =IF(OR(CH85=1,CH85=4),"","4 X 87 oz/case") -> 4 X 87 oz/case | Q108: =IF(OR(CH85=1,CH85=4),"",IF($CH$85=1,CL107,IF($CH$85=2,CK107,CJ107))) -> 2240 | U108: 0.4 | Y108: =IF(OR(CH85=1,CH85=4),"",IF(TRIM(U108)<>"",U108*43.56,"")) -> 17.424 | AD108: =IF(OR(CH85=1,CH85=4),"",IF(TRIM(Y108)<>"",IF(TRIM(N108)<>"",(N108*(4*87))/Y108,(4*87)/Y108),"")) -> 19.97245179 | AI108: =IF(OR(CH85=1,CH85=4),"",IF(TRIM(N108)<>"",N108*Q108,"")) ->  | CJ108: 2880 | CK108: 2942.64 | CL108: 2900.16
B109: Specticle FLO (14+ gal) | K109: 2 X 1 gal/case | Q109: 2880 | U109: 0.1492 | Y109: =IF(TRIM(U109)<>"",U109*43.56,"") -> 6.499152 | AD109: =IF(TRIM(Y109)<>"",IF(TRIM(N109)<>"",(N109*(2*128))/Y109,(2*128)/Y109),"") -> 39.38975423 | AI109: =IF(TRIM(N109)<>"",N109*Q109,"") ->  | CJ109: 3150 | CK109: 3218.5125 | CL109: 3172.05
B110: Specticle FLO (1-13 gal) | K110: 2 X 1 gal/case | Q110: 3150 | U110: 0.1492 | Y110: 6.499152 | AD110: =IF(TRIM(Y110)<>"",IF(TRIM(N110)<>"",(N110*(2*128))/Y110,(2*128)/Y110),"") -> 39.38975423 | CJ110: 1816 | CK110: 1855.498 | CL110: 1828.712
B111: Specticle FLO | K111: 8 X 18 oz/case | Q111: 1816 | U111: 0.1492 | Y111: 6.499152 | AD111: =IF(TRIM(Y111)<>"",IF(TRIM(N111)<>"",(N111*(8*18))/Y111,(8*18)/Y111),"") -> 22.15673676 | CJ111: 91 | CK111: 92.97925 | CL111: 91.637
B112: Specticle G | K112: 50 lb/bag | Q112: 91 | U112: 4.591368 | Y112: 199.9999901 | AD112: =IF(TRIM(Y112)<>"",IF(TRIM(N112)<>"",(N112*(50))/Y112,(50)/Y112),"") -> 0.2500000124 | AP112: $5/bag –- 40 bag | AV112: =IF(TRIM(N112)<>"",IF(VALUE(N112)>=40,(N112)*5,""),"") ->  | CJ112: 332.42 | CK112: 339.650135 | CL112: 334.74694 | CX112: Agency Case goods | CY112: In season | CZ112: Rate | DA112: A | DZ112: Select Rebates - Cool Season
B113: =IF(OR(CH85=1,CH85=4),"","Tribute Total") -> Tribute Total | K113: =IF(OR(CH85=1,CH85=4),"","6 oz/bottle") -> 6 oz/bottle | Q113: =IF(OR(CH85=1,CH85=4),"",IF($CH$85=1,CL112,IF($CH$85=2,CK112,CJ112))) -> 332.42 | U113: 0.07 | Y113: =IF(OR(CH85=1,CH85=4),"",IF(TRIM(U113)<>"",U113*43.56,"")) -> 3.0492 | AD113: =IF(OR(CH85=1,CH85=4),"",IF(TRIM(Y113)<>"",IF(TRIM(N113)<>"",(N113*6)/Y113,6/Y113),"")) -> 1.96772924 | AI113: =IF(OR(CH85=1,CH85=4),"",IF(TRIM(N113)<>"",N113*Q113,"")) ->  | DC113: 0.09 | DD113: 0.08 | DE113: 0.07 | DF113: 0.06 | DG113: 0.05 | DH113: 0.04 | DI113: 0.03 | DJ113: 0.02 | DK113: 0 | DM113: Herbicide Pak with Rebate | DN113: Greens Pak with Rebate | DO113: Fairy Ring Pak | DP113: Bermuda Solutions pak with Rebate | DQ113: Pythium Pak | DR113: Leaf Spot Pak | DT113: Select Rebates
B114: NON-AGENCY PRODUCTS | CM114: =IF(TRIM(N115)<>"",N115*Q115,"") ->  | DZ114: Products | EA114: Packing | EC114: Rate | ED114: Price | EE114: Rebate | EF114: Case Cost W/Select & EOP Rebate | EG114: oz/A | EH114: A/case | EI114: Cost/A | EJ114: Cost per Case with EOP rebate applied | EK114: Cost/A with EOP rebate applied
B115: 26GT | K115: 2 X 2.5 gal/case | U115: 4 | Y115: =IF(TRIM(U115)<>"",U115*43.56,"") -> 174.24 | AD115: =IF(TRIM(Y115)<>"",IF(TRIM(N115)<>"",(N115*(5*128))/Y115,(5*128)/Y115),"") -> 3.673094582 | AI115: =IF(AND(TRIM(N115)<>"",TRIM(Q115)<>""),N115*Q115,"") ->  | AP115: $20/gal – 40 gal | AV115: =IF(AND(TRIM(N115)<>"",TRIM(Q115)<>""),IF(VALUE(CE146)>=40,((N115)/0.2)*20,""),"") -> 
B116: Compass® | K116: 20 X 8 oz/drum | U116: 0.25 | Y116: =IF(TRIM(U116)<>"",U116*43.56,"") -> 10.89 | AD116: =IF(TRIM(Y116)<>"",IF(TRIM(N116)<>"",(N116*(20*8))/Y116,(20*8)/Y116),"") -> 14.69237833 | AI116: =IF(AND(TRIM(N116)<>"",TRIM(Q116)<>""),N116*Q116,"") ->  | AP116: $50lb – 8 lb | AV116: =IF(AND(TRIM(N116)<>"",TRIM(Q116)<>""),IF((VALUE(CE148))>=8,(((VALUE(N116))*10))*50,""),"") ->  | CW116: 4 | CX116: Chipco Choice | CY116: =CJ95 -> 220 | CZ116: 0.55 | DA116: =50/($CY$151*CZ116) -> 2.086985558 | DC116: =($CY$116/$DA$116)*0.91 -> 95.927832 | DD116: =($CY$116/$DA$116)*0.92 -> 96.981984 | DE116: =($CY$116/$DA$116)*0.93 -> 98.036136 | DF116: =($CY$116/$DA$116)*0.94 -> 99.090288 | DG116: =($CY$116/$DA$116)*0.95 -> 100.14444 | DH116: =($CY$116/$DA$116)*0.96 -> 101.198592 | DI116: =($CY$116/$DA$116)*0.97 -> 102.252744 | DJ116: =($CY$116/$DA$116)*0.98 -> 103.306896 | DK116: =CY116/DA116 -> 105.4152 | DM116: NA | DN116: NA | DO116: NA | DP116: NA | DQ116: NA | DR116: NA | DT116: =EK121 ->  | DU116: =EL121 -> 220
B117: Compass | K117: 4 X 1 lb/case | U117: 0.25 | Y117: 10.89 | AD117: =IF(TRIM(Y117)<>"",IF(TRIM(N117)<>"",(N117*(64))/Y117,(64)/Y117),"") -> 5.876951331 | AP117: $50lb – 8 lb | AV117: =IF(AND(TRIM(N117)<>"",TRIM(Q117)<>""),IF((VALUE(CE149))>=8,(((VALUE(N117))*4))*50,""),"") ->  | CX117: Ronstar FLO | CY117: =CJ101 -> 825 | CZ117: =$U$102 -> 2 | DA117: =640/($CY$151*CZ117) -> 7.346189164 | DC117: =($CY$117/$DA$117)*0.91 -> 102.1958437 | DD117: =($CY$117/$DA$117)*0.92 -> 103.318875 | DE117: =($CY$117/$DA$117)*0.93 -> 104.4419063 | DF117: =($CY$117/$DA$117)*0.94 -> 105.5649375 | DG117: =($CY$117/$DA$117)*0.95 -> 106.6879687 | DH117: =($CY$117/$DA$117)*0.96 -> 107.811 | DI117: =($CY$117/$DA$117)*0.97 -> 108.9340312 | DJ117: =($CY$117/$DA$117)*0.98 -> 110.0570625 | DK117: 112.303125 | DM117: NA | DN117: NA | DO117: NA | DP117: NA | DQ117: NA | DR117: NA | DT117: =EI122 ->  | DU117: =EL122 -> 108.9
B118: =IF(CH85=4,"","ProStar 70 WG") -> ProStar 70 WG | K118: =IF(CH85=4,"","4 X 3 lb/case") -> 4 X 3 lb/case | U118: 2.2 | Y118: =IF(CH85=4,"",IF(TRIM(U118)<>"",U118*43.56,"")) -> 95.832 | AD118: =IF(CH85=4,"",IF(TRIM(Y118)<>"",IF(TRIM(N118)<>"",(N118*192)/Y118,192/Y118),"")) -> 2.003506136 | AI118: =IF(CH85=4,"",IF(AND(TRIM(N118)<>"",TRIM(Q118)<>""),N118*Q118,"")) ->  | AP118: =IF(CH85=4,"","$3 lb – 24 lb") -> $3 lb – 24 lb | AV118: =IF(CH85=4,"",IF(AND(TRIM(N118)<>"",TRIM(Q118)<>""),IF((VALUE(CE150))>=24,((VALUE(N118))*12)*3,""),"")) ->  | CX118: Specticle FLO 2x1(>=14) | CY118: =CJ108 -> 2880 | CZ118: =$U$109 -> 0.1492 | DA118: =256/($CY$151*CZ118) -> 39.38975423 | DC118: =($CY$118/$DA$118)*0.91 -> 66.5350686 | DD118: =($CY$118/$DA$118)*0.92 -> 67.2662232 | DE118: =($CY$118/$DA$118)*0.93 -> 67.9973778 | DF118: =($CY$118/$DA$118)*0.94 -> 68.7285324 | DG118: =($CY$118/$DA$118)*0.95 -> 69.459687 | DH118: =($CY$118/$DA$118)*0.96 -> 70.1908416 | DI118: =($CY$118/$DA$118)*0.97 -> 70.9219962 | DJ118: =($CY$118/$DA$118)*0.98 -> 71.6531508 | DK118: 73.11546 | DM118: NA | DN118: NA | DO118: NA | DP118: NA | DQ118: NA | DR118: NA | DT118: NA
B119: =IF(CH85=2,"","Acclaim® Extra") -> Acclaim® Extra | K119: =IF(CH85=2,"","4 X 1 gal/case") -> 4 X 1 gal/case | U119: 0.5 | Y119: =IF(CH85=2,"",IF(TRIM(U119)<>"",U119*43.56,"")) -> 21.78 | AD119: =IF(CH85=2,"",IF(TRIM(Y119)<>"",IF(TRIM(N119)<>"",(N119*(4*128))/Y119,(4*128)/Y119),"")) -> 23.50780533 | AI119: =IF(CH85=2,"",IF(AND(TRIM(N119)<>"",TRIM(Q119)<>""),N119*Q119,"")) ->  | AP119: =IF(CH85=2,"","$90/gal") -> $90/gal | AV119: =IF(CH85=2,"",IF(AND(TRIM(N119)<>"",TRIM(Q119)<>""),IF(VALUE(N119)>=0.25,((N119)/0.25)*90,""),"")) ->  | CN119: =IF((AND(TRIM(N120)<>"",TRIM(Q120)<>"")),CJ105*N120*0.01,"") ->  | CX119: Specticle FLO 2x1(<14) | CY119: =CJ109 -> 3150 | CZ119: =$U$110 -> 0.1492 | DA119: =256/($CY$151*CZ119) -> 39.38975423 | DC119: =($CY119/$DA119)*0.91 -> 72.77273128 | DD119: =($CY119/$DA119)*0.92 -> 73.57243163 | DE119: =($CY119/$DA119)*0.93 -> 74.37213197 | DF119: =($CY119/$DA119)*0.94 -> 75.17183231 | DG119: =($CY119/$DA119)*0.95 -> 75.97153266 | DH119: =($CY119/$DA119)*0.96 -> 76.771233 | DI119: =($CY119/$DA119)*0.97 -> 77.57093334 | DJ119: =($CY119/$DA119)*0.98 -> 78.37063369 | DK119: 79.97003437 | DM119: 0 | DN119: NA | DO119: NA | DP119: NA | DQ119: NA | DR119: NA | DT119: NA | EL119: 0
B120: Chipco Signature | K120: 4 X 5.5 lbs/case | U120: 4 | Y120: 174.24 | AD120: =IF(TRIM(Y120)<>"",IF(TRIM(N120)<>"",(N120*(22*16))/Y120,(22*16)/Y120),"") -> 2.02020202 | CX120: Tribute Total | CY120: =CJ112 -> 332.42 | CZ120: =$U$113 -> 0.07 | DA120: =6/($CY$151*CZ120) -> 1.96772924 | DC120: =($CY120/$DA120)*0.91 -> 153.731618 | DD120: =($CY120/$DA120)*0.92 -> 155.4209765 | DE120: =($CY120/$DA120)*0.93 -> 157.1103349 | DF120: =($CY120/$DA120)*0.94 -> 158.7996934 | DG120: =($CY120/$DA120)*0.95 -> 160.4890518 | DH120: =($CY120/$DA120)*0.96 -> 162.1784102 | DI120: =($CY120/$DA120)*0.97 -> 163.8677687 | DJ120: =($CY120/$DA120)*0.98 -> 165.5571271 | DK120: 168.935844 | DM120: 0 | DN120: NA | DO120: NA | DP120: NA | DQ120: NA | DR120: NA | DT120: NA | DZ120: Celsius WG | EA120: 8x10oz | EB120: 80 | EC120: =$U$95 -> 0.085 | ED120: =CY123 -> 769.6 | EE120: 15 | EF120: =(ED120-(ED120*$ED$140))-EE120 ->  | EG120: =($EJ$140*EC120) -> 3.7026 | EH120: =(EB120/EG120) -> 21.60643872 | EI120: =(EF120/EH120) ->  | EJ120: =(ED120-(ED120*$ED$140)) ->  | EK120: =EJ120/EH120 ->  | EL120: =ED120/EH120 -> 35.619012
B121: =IF(CH85=2,"","Dylox® 420 SL") -> Dylox® 420 SL | K121: =IF(CH85=2,"","2 X 2.5 gal/case") -> 2 X 2.5 gal/case | U121: 6.9 | Y121: 300.564 | AD121: =IF(TRIM(Y121)<>"",IF(TRIM(N121)<>"",(N121*(5*128))/Y121,(5*128)/Y121),"") -> 2.129330193 | AI121: =IF(CH85=2,"",IF(AND(TRIM(N121)<>"",TRIM(Q121)<>""),N121*Q121,"")) ->  | CX121: Topchoice (>=20) | CY121: =CJ103 -> 125 | CZ121: =$U$104 -> 2 | DA121: =600/($CY$151*CZ121) -> 6.887052342 | DC121: =($CY121/$DA121)*0.91 -> 16.5165 | DD121: =($CY121/$DA121)*0.92 -> 16.698 | DE121: =($CY121/$DA121)*0.93 -> 16.8795 | DF121: =($CY121/$DA121)*0.94 -> 17.061 | DG121: =($CY121/$DA121)*0.95 -> 17.2425 | DH121: =($CY121/$DA121)*0.96 -> 17.424 | DI121: =($CY121/$DA121)*0.97 -> 17.6055 | DJ121: =($CY121/$DA121)*0.98 -> 17.787 | DK121: 18.15 | DM121: NA | DN121: NA | DO121: NA | DP121: NA | DQ121: NA | DR121: =EI123 ->  | DT121: =EI123 ->  | DU121: =EL123 -> 18.15 | DZ121: Chipco Choice | EA121: 50 | EB121: 50 | EC121: 0.5875 | ED121: 220 | EE121: 10 | EF121: =(ED121-(ED121*$ED$140))-EE121 ->  | EK121: =EF121 ->  | EL121: 220
B122: Forbid® | K122: 6 X 8 oz/case | AI122: =IF(AND(TRIM(N122)<>"",TRIM(Q122)<>""),N122*Q122,"") ->  | CC122: Calc SR min with PAK components | CX122: Topchoice (<20) | CY122: =CJ104 -> 137.5 | CZ122: =$U$105 -> 2 | DA122: =600/($CY$151*CZ122) -> 6.887052342 | DC122: 18.16815 | DD122: 18.3678 | DE122: 18.56745 | DF122: 18.7671 | DG122: 18.96675 | DH122: 19.1664 | DI122: 19.36605 | DJ122: 19.5657 | DK122: 19.965 | DM122: NA | DN122: NA | DO122: NA | DP122: NA | DQ122: NA | DR122: NA | DT122: =EI124 ->  | DU122: =EL124 -> 19.965 | DZ122: Ronstar FLO | EA122: 2x2.5gal | EB122: 640 | EC122: =$U$102 -> 2 | ED122: 800 | EE122: 100 | EF122: =(ED122-(ED122*$ED$140))-EE122 ->  | EG122: =($EJ$140*EC122) -> 87.12 | EH122: =(EB122/EG122) -> 7.346189164 | EI122: =(EF122/EH122) ->  | EJ122: =(ED122-(ED122*$ED$140)) ->  | EK122: =EJ122/EH122 ->  | EL122: =ED122/EH122 -> 108.9
B123: Proxy® | K123: 2 X 2.5 gal/case | U123: 5 | Y123: =IF(TRIM(U123)<>"",U123*43.56,"") -> 217.8 | AD123: =IF(TRIM(Y123)<>"",IF(TRIM(N123)<>"",(N123*(5*128))/Y123,(5*128)/Y123),"") -> 2.938475666 | AI123: =IF(AND(TRIM(N123)<>"",TRIM(Q123)<>""),N123*Q123,"") ->  | CC123: Single Unit | CD123: PAK Unit | CE123: Total | CX123: Celsius WG | CY123: =CJ94 -> 769.6 | CZ123: =$U$95 -> 0.085 | DA123: =80/($CY$151*CZ123) -> 21.60643872 | DC123: 32.41330092 | DD123: 32.76949104 | DE123: 33.12568116 | DF123: 33.48187128 | DG123: 33.8380614 | DH123: 34.19425152 | DI123: 34.55044164 | DJ123: 34.90663176 | DK123: 35.619012 | DM123: NA | DN123: NA | DO123: NA | DP123: NA | DQ123: NA | DR123: =EI120 ->  | DT123: =EI120 ->  | DU123: =EL120 -> 35.619012 | DZ123: Topchoice | EA123: 50 | EB123: 600 | EC123: =$U$104 -> 2 | ED123: 125 | EE123: 20 | EF123: =(ED123-(ED123*$ED$140))-EE123 ->  | EG123: =($EJ$140*EC123) -> 87.12 | EH123: 6.887052342 | EL123: 18.15
B124: =IF(OR(CH85=1,CH85=4),"","Revolver") -> Revolver | K124: =IF(OR(CH85=1,CH85=4),"","4 X 32 oz/case") -> 4 X 32 oz/case | U124: 0.4 | Y124: =IF(OR(CH85=1,CH85=4),"",IF(TRIM(U124)<>"",U124*43.56,"")) -> 17.424 | AD124: =IF(OR(CH85=1,CH85=4),"",IF(TRIM(Y124)<>"",IF(TRIM(N124)<>"",(N124*128)/Y124,128/Y124),"")) -> 7.346189164 | AI124: =IF(OR(CH85=1,CH85=4),"",IF(AND(TRIM(N124)<>"",TRIM(Q124)<>""),N124*Q124,"")) ->  | CC124: =N93*5 -> 0 | CD124: =(AP79*4)+(AP87*6)+(AP82*4) -> 0 | CE124: =SUM(CC124:CD124) -> 0 | CX124: Revolver | CY124: =CJ107 -> 2240 | CZ124: =$U$108 -> 0.4 | DA124: =348/($CY$151*CZ124) -> 19.97245179 | DC124: 102.0605793 | DD124: 103.1821241 | DE124: 104.303669 | DF124: 105.4252138 | DG124: 106.5467586 | DH124: 107.6683034 | DI124: 108.7898483 | DJ124: 109.9113931 | DK124: 112.1544828 | DM124: NA | DN124: NA | DO124: NA | DP124: NA | DQ124: NA | DR124: NA | DT124: NA | DZ124: Topchoice | EA124: 50 | EB124: 600 | EC124: =$U$104 -> 2 | ED124: 137.5 | EE124: 10 | EF124: =(ED124-(ED124*$ED$140))-EE124 ->  | EG124: =($EJ$140*EC124) -> 87.12 | EH124: =(EB124/EG124) -> 6.887052342 | EI124: =(EF124/EH124) ->  | EJ124: =(ED124-(ED124*$ED$140)) ->  | EK124: =EJ124/EH124 ->  | EL124: =ED124/EH124 -> 19.965
B125: Prograss® | K125: 2 X 2.5 gal/case | U125: 1.5 | Y125: =IF(TRIM(U125)<>"",U125*43.56,"") -> 65.34 | AD125: =IF(TRIM(Y125)<>"",IF(TRIM(N125)<>"",(N125*(5*128))/Y125,(5*128)/Y125),"") -> 9.794918886 | DZ125: Banol | EA125: 2 x 2.5gal | EB125: 640 | EC125: =$U$93 -> 2 | ED125: 1850 | EE125: 300 | EF125: =(ED125-(ED125*$ED$140))-EE125 ->  | EG125: =($EJ$140*EC125) -> 87.12 | EH125: =(EB125/EG125) -> 7.346189164 | EI125: =(EF125/EH125) ->  | EJ125: =(ED125-(ED125*$ED$140)) ->  | EK125: =EJ125/EH125 ->  | EL125: =ED125/EH125 -> 251.83125
B126: Specticle Total | K126: 4 x 144 oz/case | U126: 16 | Y126: =IF(TRIM(U126)<>"",U126*43.56,"") -> 696.96 | AD126: =IF(TRIM(Y126)<>"",IF(TRIM(N126)<>"",(N126*(4.5*128))/Y126,(4.5*128)/Y126),"") -> 0.826446281 | AI126: =IF(AND(TRIM(N126)<>"",TRIM(Q126)<>""),N126*Q126,"") ->  | CA126: 0.17 | CB126: =IF(TRIM($N$109)<>"",IF($N$109-(INT($N$109))=CA126,1,""),"") ->  | CC126: =N94*5 -> 0 | CD126: =(AP79*5)+(AP80*5)+(AP81*5) -> 0 | CE126: =SUM(CC126:CD126) -> 0 | DM126: SP With Rebate | DN126: Ess Pak With Rebate | DO126: Greens Pak with Rebate | DP126: Fairway Pak with Rebate | DQ126: SG Transition Pak with Rebate | DR126: Bermuda Solutions pak | DS126: Utility Pak with Rebate | DT126: Select Rebates | DZ126: Banol | EA126: 2x1gal | EB126: 256 | EC126: 2 | ED126: 1020 | EE126: 120 | EG126: 87.12 | EH126: 2.938475666 | EJ126: =(ED126-(ED126*$ED$140)) ->  | EK126: =EJ126/EH126 ->  | EL126: =ED126/EH126 -> 347.11875
AI127: (B) | AK127: =IF(SUM(AI115:AN126,AI93:AN113)>0,SUM(AI115:AN126,AI93:AN113),"") ->  | AV127: (D) | AW127: =IF(SUM(AV93:AY105,AV112,AV115:AY119)>0,SUM(AV93:AY105,AV112,AV115:AY119),"") ->  | CA127: 0.33 | CL127: PAK$ | CM127: =IF(TRIM(CM89)<>"",CM89,"") -> 0 | DZ127: Specticle G | EA127: 50 lb/bag | EB127: 800 | EC127: =$U$112 -> 4.591368 | ED127: =CY140 -> 91 | EE127: 5 | EG127: 199.9999901 | EH127: 4.000000198 | EI127: =(EF127/EH127) ->  | EJ127: =(ED127-(ED127*$ED$140)) ->  | EK127: =EJ127/EH127 ->  | EL127: =ED127/EH127 -> 22.74999887
BZ128: =IF(TRIM(CB132)>0,IF((CB132)=1,TRUE,""),"") ->  | CA128: 0.5 | CW128: 16 | CX128: Bayleton® FLO | CY128: =CJ93 -> 2700 | CZ128: =$U$94 -> 0.5 | DA128: =640/($CY$151*CZ128) -> 29.38475666 | DC128: =($CY$128/$DA$128)*0.91 -> 83.61478125 | DD128: =($CY$128/$DA$128)*0.92 -> 84.533625 | DE128: =($CY$128/$DA$128)*0.93 -> 85.45246875 | DF128: =($CY$128/$DA$128)*0.94 -> 86.3713125 | DG128: =($CY$128/$DA$128)*0.95 -> 87.29015625 | DH128: =($CY$128/$DA$128)*0.96 -> 88.209 | DI128: =$CY$128/$DA$128*0.97 -> 89.12784375 | DJ128: =$CY$128/$DA$128*0.98 -> 90.0466875 | DK128: =CY128/DA128 -> 91.884375 | DM128: 79.52875654 | DN128: 80.87254278 | DO128: NA | DP128: 81.49457194 | DQ128: NA | DR128: NA | DS128: NA | DT128: =EI128 ->  | DU128: =EL128 -> 91.884375 | DZ128: Bayleton FLO | EA128: 2 x 2.5gal | EB128: 640 | EC128: =$U$94 -> 0.5 | ED128: =CY128 -> 2700 | EE128: 450 | EG128: 21.78 | EH128: 29.38475666 | EJ128: =(ED128-(ED128*$ED$140)) ->  | EK128: =EJ128/EH128 ->  | EL128: =ED128/EH128 -> 91.884375
CA129: 0.67 | CM129: =SUM(CM92:CM128) -> 0 | CN129: =SUM(CN78:CN128) -> 0 | CX129: Merit 75® WSP | CY129: =CJ98 -> 1250 | CZ129: =$U$99 -> 0.197 | DA129: =176/($CY$151*CZ129) -> 20.50966518 | DC129: =($CY$129/$DA$129)*0.91 -> 55.46165625 | DD129: =($CY$129/$DA$129)*0.92 -> 56.071125 | DE129: =($CY$129/$DA$129)*0.93 -> 56.68059375 | DF129: =($CY$129/$DA$129)*0.94 -> 57.2900625 | DG129: =($CY$129/$DA$129)*0.95 -> 57.89953125 | DH129: =($CY$129/$DA$129)*0.96 -> 58.509 | DI129: =($CY$129/$DA$129)*0.97 -> 59.11846875 | DJ129: =($CY$129/$DA$129)*0.98 -> 59.7279375 | DK129: 60.946875 | DM129: 35.42642626 | DN129: 237.2261255 | DO129: NA | DP129: NA | DQ129: NA | DR129: NA | DS129: NA | DT129: =EI130 ->  | DU129: =EL130 -> 60.946875 | DZ129: Interface | EA129: 2x2.5gal | EB129: 640 | EC129: =$U$98 -> 4 | ED129: 772.5 | EE129: 75 | EG129: 174.24 | EH129: 3.673094582 | EL129: 210.313125
CA130: 0.83 | CC130: =N98*5 -> 0 | CD130: =(AP79*45)+(AP81*30)+(AP85*5)+(AP89*15)+(AP82*10)+(AP88*10) -> 0 | CE130: =SUM(CC130:CD130) -> 0 | CX130: Tartan® | CY130: =CJ102 -> 1980 | CZ130: =$U$103 -> 2 | DA130: =640/($CY$151*CZ130) -> 7.346189164 | DC130: =($CY$130/$DA$130)*0.91 -> 245.270025 | DD130: =($CY$130/$DA$130)*0.92 -> 247.9653 | DE130: =($CY$130/$DA$130)*0.93 -> 250.660575 | DF130: =($CY$130/$DA$130)*0.94 -> 253.35585 | DG130: =($CY$130/$DA$130)*0.95 -> 256.051125 | DH130: =($CY$130/$DA$130)*0.96 -> 258.7464 | DI130: =($CY$130/$DA$130)*0.97 -> 261.441675 | DJ130: =($CY$130/$DA$130)*0.98 -> 264.13695 | DK130: 269.5275 | DM130: 233.2843525 | DN130: 217.8167152 | DO130: NA | DP130: NA | DQ130: 243.9846376 | DR130: NA | DS130: NA | DT130: =EI132 ->  | DU130: =EL132 -> 269.5275 | DZ130: Merit 75 WSP | EA130: 110x1.6oz | EB130: 176 | EC130: =$U$99 -> 0.197 | ED130: 1250 | EE130: 200 | EG130: 8.58132 | EH130: 20.50966518 | EL130: 60.946875
CA131: 0 | CC131: =N99 -> 0 | CD131: =(AP79*1)+(AP80*1) -> 0 | CE131: =SUM(CC131:CD131) -> 0 | CX131: Banol® 2 x 2.5 | CY131: =CJ92 -> 1875 | CZ131: =$U$93 -> 2 | DA131: =640/($CY$151*CZ131) -> 7.346189164 | DC131: =($CY$131/$DA$131)*0.91 -> 232.2632813 | DD131: =($CY$131/$DA$131)*0.92 -> 234.815625 | DE131: =($CY$131/$DA$131)*0.93 -> 237.3679688 | DF131: =($CY$131/$DA$131)*0.94 -> 239.9203125 | DG131: =($CY$131/$DA$131)*0.95 -> 242.4726562 | DH131: =($CY$131/$DA$131)*0.96 -> 245.025 | DI131: =($CY$131/$DA$131)*0.97 -> 247.5773437 | DJ131: =($CY$131/$DA$131)*0.98 -> 250.1296875 | DK131: 255.234375 | DM131: NA | DN131: NA | DO131: NA | DP131: NA | DQ131: NA | DR131: NA | DS131: NA | DT131: =EI125 ->  | DU131: =EL125 -> 251.83125 | DZ131: Nortica | EA131: 35 lb/bag | EB131: 560 | EC131: =$U$101 -> 1.15 | ED131: 477 | EE131: 35 | EG131: 50.094 | EH131: 11.17898351 | EL131: 42.66935357
C132: =BI37 ->  | CB132: =SUM(CB126:CB131) -> 0 | CC132: =N100*5 -> 0 | CD132: =(AP81*10)+(AP84*5)+(AP85*5) -> 0 | CE132: =SUM(CC132:CD132) -> 0 | DZ132: Tartan | EA132: 2x2.5gal | EB132: 640 | EC132: =$U$103 -> 2 | ED132: =CY130 -> 1980 | EE132: 350 | EG132: 87.12 | EH132: 7.346189164 | EL132: 269.5275
CA133: 0.17 | CB133: =IF(TRIM(#REF!)<>"",IF(#REF!-(INT(#REF!))=CA133,1,""),"") ->  | DZ133: 26GT | EA133: 2x2.5gal | EB133: 640 | EC133: =$U$115 -> 4 | ED133: 625 | EE133: 100 | EG133: 174.24 | EH133: 3.673094582 | EL133: 170.15625
B134: CALCULATE YOUR REBATE | CA134: 0.33 | CB134: =IF(TRIM(#REF!)<>"",IF(#REF!-(INT(#REF!))=CA134,1,""),"") ->  | CX134: Interface® | CY134: =CJ97 -> 772.5 | CZ134: =$U$98 -> 4 | DA134: =640/($CY$151*CZ134) -> 3.673094582 | DC134: =($CY$134/$DA$134)*0.91 -> 191.3849438 | DD134: =($CY$134/$DA$134)*0.92 -> 193.488075 | DE134: =($CY$134/$DA$134)*0.93 -> 195.5912063 | DF134: =($CY$134/$DA$134)*0.94 -> 197.6943375 | DG134: =($CY$134/$DA$134)*0.95 -> 199.7974688 | DH134: =($CY$134/$DA$134)*0.96 -> 201.9006 | DI134: =($CY$134/$DA$134)*0.97 -> 204.0037313 | DJ134: =($CY$134/$DA$134)*0.98 -> 206.1068625 | DK134: 210.313125 | DM134: 122.8719289 | DN134: 139.0748944 | DO134: NA | DP134: 105.1084391 | DQ134: 128.5078176 | DR134: 171.8244485 | DS134: 0 | DT134: =EI129 ->  | DU134: =EL129 -> 210.313125 | DZ134: Acclaim® Extra | EA134: 4 X 1 gal | EB134: 512 | EC134: =$U$119 -> 0.5 | ED134: 1860 | EE134: 90 | EG134: 21.78 | EH134: 23.50780533 | EL134: 79.12265625
BZ135: =IF(TRIM(CB139)>0,IF((CB139)=1,TRUE,""),"") ->  | CA135: 0.5 | CB135: =IF(TRIM(#REF!)<>"",IF(#REF!-(INT(#REF!))=CA135,1,""),"") ->  | CC135: =N103*5 -> 0 | CD135: =(AP79*30)+(AP80*15)+(AP82*5)+(AP86*5)+(AP85*5) -> 0 | CE135: =SUM(CC135:CD135) -> 0 | CX135: Signature | CY135: =CJ106 -> 1133.25 | CZ135: =$U$106 -> 4 | DA135: =704/($CY$151*CZ135) -> 4.04040404 | DC135: =($CY$135/$DA$135)*0.91 -> 255.2362313 | DD135: =($CY$135/$DA$135)*0.92 -> 258.041025 | DE135: =($CY$135/$DA$135)*0.93 -> 260.8458188 | DF135: =($CY$135/$DA$135)*0.94 -> 263.6506125 | DG135: =($CY$135/$DA$135)*0.95 -> 266.4554063 | DH135: =($CY$135/$DA$135)*0.96 -> 269.2602 | DI135: =($CY$135/$DA$135)*0.97 -> 272.0649938 | DJ135: =($CY$135/$DA$135)*0.98 -> 274.8697875 | DK135: 280.479375 | DM135: NA | DN135: NA | DO135: NA | DP135: NA | DQ135: NA | DR135: NA | DS135: NA | DT135: NA | DZ135: Compass | EA135: 4x1lb | EB135: 64 | EC135: =$U$117 -> 0.25 | ED135: 1580 | EE135: 200 | EG135: 10.89 | EH135: 5.876951331 | EJ135: =(ED135-(ED135*$ED$140)) ->  | EK135: =EJ135/EH135 ->  | EL135: =ED135/EH135 -> 268.846875
B136: PURCHASE TOTAL | H136: BASE BONUS | L136: OCTOBER BONUS+++ | N136: BAYER PAK BONUS+ | R136: ..(C) TOTAL PROGRAM REBATE++ | CA136: 0.67 | CB136: =IF(TRIM(#REF!)<>"",IF(#REF!-(INT(#REF!))=CA136,1,""),"") ->  | CX136: Nortica | CY136: =CJ100 -> 491.31 | CZ136: =$U$101 -> 1.15 | DA136: =560/($CY$151*CZ136) -> 11.17898351 | DC136: =($CY$136/$DA$136)*0.91 -> 39.9939851 | DD136: =($CY$136/$DA$136)*0.92 -> 40.43347944 | DE136: =($CY$136/$DA$136)*0.93 -> 40.87297379 | DF136: =($CY$136/$DA$136)*0.94 -> 41.31246813 | DG136: =($CY$136/$DA$136)*0.95 -> 41.75196247 | DH136: =($CY$136/$DA$136)*0.96 -> 42.19145681 | DI136: =($CY$136/$DA$136)*0.97 -> 42.63095115 | DJ136: =($CY$136/$DA$136)*0.98 -> 43.0704455 | DK136: 43.94943418 | DM136: NA | DN136: NA | DO136: NA | DP136: NA | DQ136: NA | DR136: NA | DS136: NA | DT136: =EI131 ->  | DU136: =EL131 -> 42.66935357 | DZ136: Compass | EA136: 20X8oz | EB136: 160 | EC136: =$U$116 -> 0.25 | ED136: 3900 | EE136: 500 | EG136: 10.89 | EH136: 14.69237833 | EL136: 265.44375
CA137: 0.83 | CB137: =IF(TRIM(#REF!)<>"",IF(#REF!-(INT(#REF!))=CA137,1,""),"") ->  | CX137: Fiata Stressgard | CY137: =CJ96 -> 250 | CZ137: =$U$97 -> 5 | DA137: =640/($CY$151*CZ137) -> 2.938475666 | DC137: =($CY$137/$DA$137)*0.91 -> 77.42109375 | DD137: =($CY$137/$DA$137)*0.92 -> 78.271875 | DE137: =($CY$137/$DA$137)*0.93 -> 79.12265625 | DF137: =($CY$137/$DA$137)*0.94 -> 79.9734375 | DG137: =($CY$137/$DA$137)*0.95 -> 80.82421875 | DH137: =($CY$137/$DA$137)*0.96 -> 81.675 | DI137: =($CY$137/$DA$137)*0.97 -> 82.52578125 | DJ137: =($CY$137/$DA$137)*0.98 -> 83.3765625 | DK137: 85.078125 | DM137: NA | DN137: NA | DO137: NA | DP137: NA | DQ137: NA | DR137: NA | DS137: NA | DT137: =EI138 ->  | DU137: =EL138 -> 85.078125 | DZ137: Prostar | EA137: 4x3 lb | EB137: 192 | EC137: =$U$118 -> 2.2 | ED137: 720 | EE137: 36 | EG137: 95.832 | EH137: 2.003506136 | EL137: 359.37
B138: $2,500 < $10,000 | H138: 0.02 | L138: 0.01 | N138: 0.01 | R138: 0.04 | CA138: 0 | CB138: =IF(TRIM(#REF!)<>"",IF(#REF!-(INT(#REF!))=CA138,1,""),"") ->  | CX138: Mirage Stressgard | CY138: =CJ99 -> 875 | CZ138: =$U$100 -> 1 | DA138: =640/($CY$151*CZ138) -> 14.69237833 | DC138: =($CY$138/$DA$138)*0.91 -> 54.19476563 | DD138: =($CY$138/$DA$138)*0.92 -> 54.7903125 | DE138: =($CY$138/$DA$138)*0.93 -> 55.38585938 | DF138: =($CY$138/$DA$138)*0.94 -> 55.98140625 | DG138: =($CY$138/$DA$138)*0.95 -> 56.57695312 | DH138: =($CY$138/$DA$138)*0.96 -> 57.1725 | DI138: =($CY$138/$DA$138)*0.97 -> 57.76804687 | DJ138: =($CY$138/$DA$138)*0.98 -> 58.36359375 | DK138: 59.5546875 | DM138: NA | DN138: NA | DO138: NA | DP138: 125.9091137 | DQ138: NA | DR138: NA | DS138: NA | DT138: =EI139 ->  | DU138: =EL139 -> 59.5546875 | DZ138: Fiata Stressgard | EA138: 2x2.5gal | EB138: 640 | EC138: =$U$97 -> 5 | ED138: 250 | EE138: 50 | EG138: 217.8 | EH138: 2.938475666 | EL138: 85.078125
B139: $10,000 < $15,000 | H139: 0.03 | L139: 0.01 | N139: 0.01 | R139: 0.05 | CB139: =SUM(CB133:CB138) ->  | CX139: Specticle® FLO | CY139: =CJ110 -> 1816 | CZ139: =$U$111 -> 0.1492 | DA139: =144/($CY$151*CZ139) -> 22.15673676 | DC139: =($CY$139/$DA$139)*0.91 -> 74.58499048 | DD139: =($CY$139/$DA$139)*0.92 -> 75.40460576 | DE139: =($CY$139/$DA$139)*0.93 -> 76.22422104 | DF139: =($CY$139/$DA$139)*0.94 -> 77.04383632 | DG139: =($CY$139/$DA$139)*0.95 -> 77.8634516 | DH139: =($CY$139/$DA$139)*0.96 -> 78.68306688 | DI139: =($CY$139/$DA$139)*0.97 -> 79.50268216 | DJ139: =($CY$139/$DA$139)*0.98 -> 80.32229744 | DK139: 81.961528 | DM139: NA | DN139: NA | DO139: NA | DP139: NA | DQ139: NA | DR139: NA | DS139: NA | DT139: NA | DZ139: Mirage Stressgard | EA139: 2x2.5gal | EB139: 640 | EC139: =$U$100 -> 1 | ED139: 875 | EE139: 75 | EG139: 43.56 | EH139: 14.69237833 | EL139: 59.5546875
B140: $15,000 < $25,000 | H140: 0.04 | L140: 0.01 | N140: 0.01 | R140: 0.06 | AF140: October Bonus | CA140: 0.17 | CB140: =IF(TRIM($N$122)<>"",IF($N$122-(INT($N$122))=CA140,1,""),"") ->  | CX140: Specticle G | CY140: =CJ111 -> 91 | CZ140: =$U$112 -> 4.591368 | DA140: =800/($CY$151*CZ140) -> 4.000000198 | DC140: =($CY$140/$DA$140)*0.91 -> 20.70249897 | DD140: =($CY$140/$DA$140)*0.92 -> 20.92999896 | DE140: =($CY$140/$DA$140)*0.93 -> 21.15749895 | DF140: =($CY$140/$DA$140)*0.94 -> 21.38499894 | DG140: =($CY$140/$DA$140)*0.95 -> 21.61249893 | DH140: =($CY$140/$DA$140)*0.96 -> 21.83999892 | DI140: =($CY$140/$DA$140)*0.97 -> 22.06749891 | DJ140: =($CY$140/$DA$140)*0.98 -> 22.29499889 | DK140: 22.74999887 | DM140: NA | DN140: NA | DO140: NA | DP140: NA | DQ140: NA | DR140: NA | DS140: NA | DT140: =EI127 ->  | DU140: =EL127 -> 22.74999887 | ED140: =P147 ->  | EJ140: 43.56
B141: $25,000 < $28,500 | H141: 0.05 | L141: 0.01 | N141: 0.01 | R141: 0.07 | CA141: 0.33
B142: $28,500 < $40,000 | H142: Total program rebate for all purchases Oct 1 - Dec 9, 2016 | R142: 0.08 | BZ142: =IF(TRIM(CB146)>0,IF((CB146)=1,TRUE,""),"") ->  | CA142: 0.5 | CX142: Non Agency Case goods | CY142: In season | CZ142: Rate | DC142: 0.09 | DD142: 0.08 | DE142: 0.07 | DF142: 0.06 | DG142: 0.05 | DH142: 0.04 | DI142: 0.03 | DJ142: 0.02 | DM142: SP With Rebate | DN142: Ess Pak With Rebate | DO142: Greens Pak with Rebate | DP142: Fairway Pak with Rebate | DQ142: SG Transition Pak with Rebate | DR142: Bermuda Solutions pak | DS142: Utility Pak with Rebate | DT142: Select Rebates
B143: $40K+ | R143: 0.09 | CA143: 0.67 | CX143: Signature | CY143: =CJ106 -> 1133.25 | CZ143: =$U$120 -> 4 | DA143: =352/($CY$151*CZ143) -> 2.02020202 | DC143: =($CY$143/$DA$143)*0.91 -> 510.4724625 | DD143: =($CY$143/$DA$143)*0.92 -> 516.08205 | DE143: =($CY$143/$DA$143)*0.93 -> 521.6916375 | DF143: =($CY$143/$DA$143)*0.94 -> 527.301225 | DG143: =($CY$143/$DA$143)*0.95 -> 532.9108125 | DH143: =($CY$143/$DA$143)*0.96 -> 538.5204 | DI143: =($CY$143/$DA$143)*0.97 -> 544.1299875 | DJ143: =($CY$143/$DA$143)*0.98 -> 549.739575 | DK143: =CY143/DA143 -> 560.95875 | DM143: 214.1974509 | DN143: 217.8167152 | DO143: 200.5348395 | DP143: NA | DQ143: 224.0222582 | DR143: 224.6507353 | DS143: NA | DT143: NA
CA144: 0.83 | CX144: 26GT | CY144: =ED133 -> 625 | CZ144: =$U$115 -> 4 | DA144: =640/($CY$151*CZ144) -> 3.673094582 | DC144: =($CY$144/$DA$144)*0.91 -> 154.8421875 | DD144: =($CY$144/$DA$144)*0.92 -> 156.54375 | DE144: =($CY$144/$DA$144)*0.93 -> 158.2453125 | DF144: =($CY$144/$DA$144)*0.94 -> 159.946875 | DG144: =($CY$144/$DA$144)*0.95 -> 161.6484375 | DH144: =($CY$144/$DA$144)*0.96 -> 163.35 | DI144: =($CY$144/$DA$144)*0.97 -> 165.0515625 | DJ144: =($CY$144/$DA$144)*0.98 -> 166.753125 | DK144: 170.15625 | DM144: NA | DN144: NA | DO144: 124.0933413 | DP144: 105.1084391 | DQ144: NA | DR144: NA | DS144: NA | DT144: =EI133 ->  | DU144: =EL133 -> 170.15625
AL145: SELECT REBATE (D) (IF APPLICABLE) | CA145: 0 | CX145: Compass (20x8oz) | CY145: =ED136 -> 3900 | CZ145: =$U$116 -> 0.25 | DA145: =160/($CY$151*CZ145) -> 14.69237833 | DC145: =($CY$145/$DA$145)*0.91 -> 241.5538125 | DD145: =($CY$145/$DA$145)*0.92 -> 244.20825 | DE145: =($CY$145/$DA$145)*0.93 -> 246.8626875 | DF145: =($CY$145/$DA$145)*0.94 -> 249.517125 | DG145: =($CY$145/$DA$145)*0.95 -> 252.1715625 | DH145: =($CY$145/$DA$145)*0.96 -> 254.826 | DI145: =($CY$145/$DA$145)*0.97 -> 257.4804375 | DJ145: =($CY$145/$DA$145)*0.98 -> 260.134875 | DK145: 265.44375 | DM145: NA | DN145: NA | DO145: NA | DP145: NA | DQ145: NA | DR145: NA | DS145: NA | DT145: =EI136 ->  | DU145: =EL136 -> 265.44375
H146: TOTAL $ (A + B) | O146: TOTAL PROGRAM REBATE_(C) | Z146: TOTAL PROGRAM REBATE | AT146: GRAND TOTAL REBATE $ | CB146: =SUM(CB140:CB145) -> 0 | CC146: =N115*5 -> 0 | CD146: =(AP80*30)+(AP81*30)+(AP83*25) -> 0 | CE146: =SUM(CC146:CD146) -> 0 | CX146: Compass (4x1lb) | CY146: =ED135 -> 1580 | CZ146: =$U$117 -> 0.25 | DA146: =64/($CY$151*CZ146) -> 5.876951331 | DC146: =($CY$146/$DA$146)*0.91 -> 244.6506563 | DD146: =($CY$146/$DA$146)*0.92 -> 247.339125 | DE146: =($CY$146/$DA$146)*0.93 -> 250.0275938 | DF146: =($CY$146/$DA$146)*0.94 -> 252.7160625 | DG146: =($CY$146/$DA$146)*0.95 -> 255.4045312 | DH146: =($CY$146/$DA$146)*0.96 -> 258.093 | DI146: =($CY$146/$DA$146)*0.97 -> 260.7814687 | DJ146: =($CY$146/$DA$146)*0.98 -> 263.4699375 | DK146: 268.846875 | DM146: NA | DN146: NA | DO146: NA | DP146: NA | DQ146: NA | DR146: NA | DS146: NA | DT146: =EI135 ->  | DU146: =EL135 -> 268.846875
H147: =IF(CO3=2,"",BL17) ->  | N147: x | P147: =IF(BL18<>"",BL18,"") ->  | X147: = | Z147: =IF(CO3=2,"",IF(BL19>0,BL19,"")) ->  | AI147: + | AL147: =IF(CO3=2,"",BL20) ->  | AS147: = | AT147: =IF(TRIM(BL25)="","",IF(BL25>0,BL25,"")) ->  | CX147: Prostar | CY147: =ED137 -> 720 | CZ147: =$U$118 -> 2.2 | DA147: =192/($CY$151*CZ147) -> 2.003506136 | DC147: =($CY$147/$DA$147)*0.91 -> 327.0267 | DD147: =($CY$147/$DA$147)*0.92 -> 330.6204 | DE147: =($CY$147/$DA$147)*0.93 -> 334.2141 | DF147: =($CY$147/$DA$147)*0.94 -> 337.8078 | DG147: =($CY$147/$DA$147)*0.95 -> 341.4015 | DH147: =($CY$147/$DA$147)*0.96 -> 344.9952 | DI147: =($CY$147/$DA$147)*0.97 -> 348.5889 | DJ147: =($CY$147/$DA$147)*0.98 -> 352.1826 | DK147: 359.37 | DM147: NA | DN147: NA | DO147: NA | DP147: NA | DQ147: NA | DR147: 293.6029412 | DS147: NA | DT147: =EI137 ->  | DU147: =EL137 -> 359.37
AT148: X 100 = MyBayerRewards POINTS | CC148: =N116*10 -> 0 | CD148: =N117*4 -> 0 | CE148: =SUM(CC148:CD148) -> 0 | CX148: Acclaim® Extra | CY148: 1860 | CZ148: =$U$119 -> 0.5 | DA148: =512/($CY$151*CZ148) -> 23.50780533 | DC148: =($CY$148/$DA$148)*0.91 -> 72.00161719 | DD148: =($CY$148/$DA$148)*0.92 -> 72.79284375 | DE148: =($CY$148/$DA$148)*0.93 -> 73.58407031 | DF148: =($CY$148/$DA$148)*0.94 -> 74.37529688 | DG148: =($CY$148/$DA$148)*0.95 -> 75.16652344 | DH148: =($CY$148/$DA$148)*0.96 -> 75.95775 | DI148: =($CY$148/$DA$148)*0.97 -> 76.74897656 | DJ148: =($CY$148/$DA$148)*0.98 -> 77.54020313 | DK148: 79.12265625 | DM148: NA | DN148: NA | DO148: NA | DP148: NA | DQ148: NA | DR148: NA | DS148: NA | DT148: =EI134 ->  | DU148: =EL134 -> 79.12265625
O149: GRAND TOTAL REBATE EARNED | CC149: =N117*4 -> 0 | CD149: =N116*10 -> 0 | CE149: 0 | CX149: Banol 2 x 1 gal | CY149: =ED126 -> 1020 | CZ149: =2 -> 2 | DA149: =256/($CY$151*CZ149) -> 2.938475666 | DC149: =($CY$149/$DA$149)*0.91 -> 315.8780625 | DD149: =($CY$149/$DA$149)*0.92 -> 319.34925 | DE149: =($CY$149/$DA$149)*0.93 -> 322.8204375 | DF149: =($CY$149/$DA$149)*0.94 -> 326.291625 | DG149: =($CY$149/$DA$149)*0.95 -> 329.7628125 | DH149: =($CY$149/$DA$149)*0.96 -> 333.234 | DI149: =($CY$149/$DA$149)*0.97 -> 336.7051875 | DJ149: =($CY$149/$DA$149)*0.98 -> 340.176375 | DK149: 347.11875 | DM149: 196.1709328 | DN149: NA | DO149: NA | DP149: NA | DQ149: NA | DR149: NA | DS149: NA | DT149: =EI126 ->  | DU149: =EL126 -> 347.11875
P150: =IF(CM129>=2500,IF(TRIM(AT147)<>"",IF(AT147>0,(AT147)/(BL1),""),""),"") ->  | AT150: =IF((CO3)<>2,"",IF((BL25)="","",(BL25)*100)) ->  | CC150: =N118*12 -> 0 | CD150: =(AP82*48)+(AP86*48) -> 0 | CE150: =SUM(CC150:CD150) -> 0 | DA150: 6.4
CY151: 43.56
B152: I would like to receive (choose one): | L152: MyBayerRewards Points | T152: or | X152: Distributor Credit | AI152: MyBayerRewards Member ID
B154: Verify your rebate selection and update your profile at My Bayer Rewards by 1st March, 2017 myrewards.cropscience.bayer.com
B159: Customer Fall Solutions and NOW promotional cumulative purchases (August 1 - December 9, 2016) must be $2,500 or more to qualify for Select Product Rebates and Total Program Rebates. Participants must be members of MyBayerRewards. New members signed up before March 1, 2017 will receive 2016 Fall Solutions rebates. All rebates for 2016 Bayer Fall Solutions will be paid based on participant's My Bayer Rewards profile choice as of March 1, 2017 . If no selection is made, the default for Fall Solutions rebate will be Loyalty Points. Purchases qualifying for rebates will be the net of reward or credits. All products must be invoiced between October 1 and December 9, 2016 to qualify. Rebate calculations will be based on the date of actual product invoice and calculator tools are provided for estimation purposes only. Rebates will only be paid or delivered to the company or name listed on the invoice. No checks can be issued to a third party. Please allow for rebates to be fulfilled by August 31, 2017. Only end-user purchases qualify for this program, and purchases must be from a Bayer authorized Distributor or Agent. Resale of product(s) purchased within this program will not qualify for Distributor Credits or My Bayer Rewards points. If questions arise, please contact My Bayer Rewards at 1-888-456-6464 or e-mail mybayerrewards@aimia.com. Bayer CropScience LP, Environmental Science Division, 2 T.W. Alexander Drive, Research Triangle Park, NC 27709. 1-800-331-2867. www.BackedbyBayer.com. Bayer (reg'd), the Bayer Cross (reg'd), 26GT®, Acclaim®, Banol®, Bayleton®,Celsius® Chipco®, Compass®, Dylox®, Fiata®, Forbid®, Interface®, Merit®, Mirage®, Nortica®, Prostar®, Proxy®, Ronstar®, Signature™ Specticle®, Signature™ Stressgard®, Tartan®, Tribute® and Topchoice® are trademarks of Bayer. Please verify state registration of these products in your state before selling, using or distributing. Not all products and rates are registered in all states. Always read and follow label instructions. ©2016 Bayer CropScience LP. 14BPG-059-FS1
B166: Contact Name | X166: Golf Course Number

Sheet Sheet2

Sheet Sheet1
